[Event "TUR-ch Veterans 2020"]
[Site "Antalya-Belek"]
[Date "2020.01.20"]
[Round "2"]
[White "Muratoglu, Salih"]
[Black "Buyukgokcesu, Tahir Sami"]
[Result "1-0"]
[ECO "A55"]
[WhiteElo "1967"]
[BlackElo "1618"]
[Annotator "NA"]
[PlyCount "107"]
[EventDate "2020.01.19"]
[EventCountry "TUR"]
[SourceTitle "playchess.com"]
[Source "ChessBase"]
[SourceQuality "1"]
[TimeControl "5400+30"]

1. d4 {[%emt 0:00:30]} Nf6 {[%emt 0:00:30]} 2. c4 {[%emt 0:00:00]} d6 {[%emt 0:00:30]} 3. Nc3 {[%emt 0:00:00]} Nbd7 {[%emt 0:00:00]} 4. e4 {[%emt 0:00:30]} e5 {[%emt 0:00:00]} 5. Nf3 {[%emt 0:00:30]} c6 {[%emt 0:01:30]} 6. h3 {[%emt 0:01:30]} Be7 {[%emt 0:00:30] A55: Old Indian Defence with Nf3 and e4} (6... g6 7. Be3 Bg7 8. g3 O-O 9. Bg2 b5 10. dxe5 dxe5 11. Nd2 a6 12. O-O Bb7 13. Nb3 Rc8 14. Qe2 {½-½ (37) Miezis,N (2533)-Markus,R (2620) Nova Gorica 2010}) 7. Be3 {[%emt 0:00:30]} Qc7 {[%emt 0:02:30]} 8. Be2 {[%emt 0:01:30]} Nf8 {[%emt 0:04:30]} 9. Qd3 $146 {[%emt 0:04:30]} ({Predecessor:} 9. Qd2 Ng6 10. O-O O-O 11. Rac1 Bd7 12. a3 a5 13. Ne1 exd4 14. Bxd4 Ne8 15. f4 Bf6 16. Nf3 Bxd4+ 17. Nxd4 Nf6 18. Kh1 {0-1 (38) Kharlamov,V-Westman,L (1700) Heraklion 2019}) 9... Ng6 {[%emt 0:03:30]} 10. O-O {[%emt 0:02:30]} O-O {[%emt 0:03:30]} 11. Rad1 {[%emt 0:01:30]} b6 {[%emt 0:05:30]} 12. b4 {[%emt 0:03:30]} a5 {[%emt 0:05:30]} 13. a3 {[%emt 0:01:30]} axb4 {[%emt 0:08:30]} 14. axb4 {[%emt 0:00:30]} Rd8 {[%emt 0:03:30]} 15. Qd2 {[%emt 0:01:30]} Bb7 {[%emt 0:07:30]} 16. d5 {[%emt 0:02:30]} c5 {[%emt 0:03:30]} 17. bxc5 {[%emt 0:01:30]} bxc5 {[%emt 0:00:30]} 18. g3 {[%emt 0:00:30]} Bc8 {[%emt 0:00:30]} 19. Kg2 {[%emt 0:01:30]} Qd7 {[%emt 0:02:30]} 20. Ng1 {[%emt 0:00:00]} Qc7 {[%emt 0:03:30]} 21. Qc2 {[%emt 0:02:00]} Bd7 {[%emt 0:01:30]} 22. f4 {[%emt 0:00:30]} (22. Ra1 $14 {stays ahead.}) 22... Ra3 {[%emt 0:03:30]} (22... exf4 $15 23. gxf4 Ra3) 23. Ra1 {[%emt 0:05:30]} Qa5 {[%emt 0:00:30]} 24. Rxa3 {[%emt 0:01:30]} Qxa3 {[%emt 0:00:30]} 25. Bc1 {[%emt 0:00:30]} Qa5 {[%emt 0:01:30]} 26. f5 {[%emt 0:01:30]} Nf8 {[%emt 0:00:30]} 27. g4 {[%emt 0:00:30]} Ne8 {[%emt 0:00:30]} 28. g5 {[%emt 0:00:30]} f6 {[%emt 0:03:30]} 29. h4 {[%emt 0:00:30]} Rb8 {[%emt 0:00:30]} 30. Bd2 {[%emt 0:01:30]} Qd8 {[%emt 0:02:30]} 31. Nh3 {[%emt 0:00:30]} Rb7 {[%emt 0:01:30]} 32. Rf3 {[%emt 0:00:30]} Qb8 {[%emt 0:01:30]} 33. Bc1 {[%emt 0:01:30]} Qd8 {[%emt 0:03:30]} 34. Rg3 {[%emt 0:00:30]} Kh8 {[%emt 0:03:30]} (34... Nc7 $16) 35. Bd1 {[%emt 0:03:30]} Nc7 {[%emt 0:00:30]} 36. Qe2 {[%emt 0:00:30]} Be8 {[%emt 0:00:30]} 37. Qg4 {[%emt 0:00:30]} Na6 {[%emt 0:03:30]} 38. h5 {[%emt 0:01:30]} fxg5 {[%emt 0:03:21]} 39. Nxg5 {[%emt 0:00:30]} Bf6 {[%emt 0:01:11]} 40. Ne6 {[%emt 0:01:30]} Qe7 {[%emt 0:01:52]} 41. h6 {[%emt 0:01:30]} g6 {[%emt 0:01:42]} 42. Be2 {[%emt 0:01:30]} Nb4 {[%emt 0:00:56]} 43. Nb5 {[%emt 0:04:30]} Nc2 {[%emt 0:01:33] [#]} 44. Bg5 $1 {[%emt 0:02:30]} Rd7 {[%emt 0:04:31]} 45. Bd1 {[%emt 0:03:30]} Nd4 {[%emt 0:00:54]} 46. Nxf8 {[%emt 0:00:30]} Qxf8 {[%emt 0:00:03]} 47. fxg6 {[%emt 0:00:30]} hxg6 {[%emt 0:01:09]} 48. Nxd4 {[%emt 0:01:30]} exd4 {[%emt 0:00:16]} 49. Bxf6+ {[%emt 0:05:30]} Qxf6 {[%emt 0:00:23]} 50. Rf3 {[%emt 0:00:30]} Qe7 $1 {[%emt 0:01:18]} 51. Qf4 {[%emt 0:01:30]} (51. Ba4 $11 {remains equal.} Rd8 52. Bc6) 51... Kh7 {[%emt 0:00:51]} 52. Rb3 {[%emt 0:03:30]} Rd8 {[%emt 0:02:10]} 53. Bg4 {[%emt 0:00:30]} Qe5 $2 {[%emt 0:01:05]} (53... Bf7 $11) 54. Rb7+ {[%emt 0:01:30]} 1-0

[Event "TUR-ch Veterans 2020"]
[Site "Antalya-Belek"]
[Date "2020.01.20"]
[Round "2"]
[White "Guner, Bulent"]
[Black "Demir, Zeki"]
[Result "1/2-1/2"]
[ECO "D12"]
[WhiteElo "1964"]
[BlackElo "1703"]
[Annotator "NA"]
[PlyCount "60"]
[EventDate "2020.01.19"]
[EventCountry "TUR"]
[SourceTitle "playchess.com"]
[Source "ChessBase"]
[SourceQuality "1"]
[TimeControl "5400+30"]

1. d4 {[%emt 0:00:30]} d5 {[%emt 0:00:30]} 2. c4 {[%emt 0:00:30]} c6 {[%emt 0:00:30]} 3. Nf3 {[%emt 0:00:30]} Nf6 {[%emt 0:00:00]} 4. e3 {[%emt 0:00:00]} Bf5 {[%emt 0:01:00]} 5. Nc3 {[%emt 0:02:00]} e6 {[%emt 0:00:30]} 6. Bd3 {[%emt 0:03:30]} Bxd3 {[%emt 0:00:00]} 7. Qxd3 {[%emt 0:00:00]} Bb4 {[%emt 0:04:00]} 8. Bd2 {[%emt 0:01:00] D12: Slav Defence: 3 Nf3 Nf6 4 e3 Bf5} (8. O-O O-O 9. Bd2 Ba5 10. a3 Nbd7 11. Rfe1 h6 12. Rad1 a6 13. b4 Bc7 14. e4 Nb6 15. c5 dxe4 16. Nxe4 Nbd5 17. Ng3 {0-1 (81) Nenezic,M (2495)-Mamedov,R (2699) Batumi 2018}) 8... Bxc3 {[%emt 0:03:30]} 9. Bxc3 {[%emt 0:01:30]} Ne4 {[%emt 0:00:30]} 10. O-O {[%emt 0:01:30]} O-O {[%emt 0:00:30]} 11. Nd2 {[%emt 0:06:30]} f5 {[%emt 0:01:30]} 12. f3 {[%emt 0:01:30]} Nxc3 $146 {[%emt 0:03:30]} ({Predecessor:} 12... Ng5 13. e4 Na6 14. cxd5 cxd5 15. exf5 Rxf5 16. Rae1 Nc7 17. Ba5 b6 18. Bb4 Qd7 19. Qe3 Nf7 20. f4 a5 {½-½ (20) Mazalon,M (2165)-Grycel,K (2290) Ustron 2003}) 13. bxc3 {[%emt 0:02:30]} Nd7 {[%emt 0:00:00]} 14. e4 {[%emt 0:06:30]} Qa5 {[%emt 0:06:00]} 15. exd5 {[%emt 0:10:30]} exd5 {[%emt 0:00:30]} 16. c5 {[%emt 0:00:30]} Rae8 {[%emt 0:02:30]} 17. Rfe1 {[%emt 0:03:30]} g6 {[%emt 0:02:30]} 18. Nb3 {[%emt 0:06:30]} Qd8 {[%emt 0:06:30]} 19. Rab1 {[%emt 0:04:30]} Rxe1+ {[%emt 0:05:30]} 20. Rxe1 {[%emt 0:00:30]} Re8 {[%emt 0:00:30]} 21. Qd2 {[%emt 0:00:30]} Rxe1+ {[%emt 0:00:30]} 22. Qxe1 {[%emt 0:00:30]} Kf7 {[%emt 0:00:30]} 23. Qe3 {[%emt 0:06:30]} b6 {[%emt 0:00:30]} 24. Qh6 {[%emt 0:03:30]} Nf8 {[%emt 0:02:30]} 25. g3 {[%emt 0:02:30]} Qe7 {[%emt 0:03:30]} 26. Kf2 {[%emt 0:04:30]} Ke8 {[%emt 0:00:30]} 27. Qf4 {[%emt 0:00:30]} Ne6 {[%emt 0:00:30]} 28. Qb8+ {[%emt 0:01:30]} Kf7 {[%emt 0:00:30]} 29. cxb6 {[%emt 0:02:30]} axb6 {[%emt 0:00:30]} 30. Qxb6 {[%emt 0:03:30]} (30. Nc1 $1 $14) 30... Qa3 $11 {[%emt 0:00:30]} 1/2-1/2

[Event "TUR-ch Veterans 2020"]
[Site "Antalya-Belek"]
[Date "2020.01.20"]
[Round "2"]
[White "Cicek, Cemil"]
[Black "Atas, Remzi"]
[Result "1-0"]
[ECO "D38"]
[WhiteElo "1940"]
[BlackElo "1498"]
[Annotator "NA"]
[PlyCount "93"]
[EventDate "2020.01.19"]
[EventCountry "TUR"]
[SourceTitle "playchess.com"]
[Source "ChessBase"]
[SourceQuality "1"]
[TimeControl "5400+30"]

1. d4 {[%emt 0:00:30]} Nf6 {[%emt 0:00:30]} 2. Nf3 {[%emt 0:00:00]} e6 {[%emt 0:01:30]} 3. c4 {[%emt 0:00:00]} c6 {[%emt 0:00:30]} 4. Nc3 {[%emt 0:00:30]} Bb4 {[%emt 0:00:30]} 5. Qc2 {[%emt 0:00:30]} d5 {[%emt 0:00:30]} 6. cxd5 {[%emt 0:00:30]} exd5 {[%emt 0:00:30]} 7. Bg5 {[%emt 0:00:30]} O-O {[%emt 0:02:30] D38: Queen's Gambit Declined: Ragozin Defence (4 Nf3 Bb4)} 8. e3 {[%emt 0:00:30]} Bg4 {[%emt 0:00:30]} 9. Ne5 {[%emt 0:00:30]} Bh5 {[%emt 0:00:30]} 10. Bd3 {[%emt 0:00:30]} Bg6 {[%emt 0:03:30]} 11. O-O $146 {[%emt 0:00:30]} ({Predecessor:} 11. Nxg6 hxg6 12. h4 Qd6 13. h5 Nxh5 14. O-O-O Re8 15. Rh3 Nd7 16. Rdh1 Qe6 17. Ne2 Bd6 18. Nf4 Bxf4 19. exf4 Qg4 20. f3 Qe6 21. f5 {1-0 (21) Saduakassova,D (2460)-Shuvalova,P (2385) Riadh 2017}) 11... Be7 {[%emt 0:00:30]} 12. f4 {[%emt 0:01:30]} Bxd3 {[%emt 0:00:30]} 13. Qxd3 {[%emt 0:00:30]} Nbd7 {[%emt 0:01:30]} 14. a3 {[%emt 0:01:30]} Rc8 {[%emt 0:00:30]} 15. b4 {[%emt 0:00:30]} Ne8 {[%emt 0:03:30]} 16. Qf5 {[%emt 0:02:30]} Ndf6 {[%emt 0:02:30]} 17. Rac1 {[%emt 0:00:30]} Nd6 {[%emt 0:00:30]} 18. Qd3 {[%emt 0:00:30]} Nfe4 {[%emt 0:01:30]} 19. Bxe7 {[%emt 0:01:30]} Qxe7 {[%emt 0:00:00]} 20. Na4 {[%emt 0:01:30]} f6 {[%emt 0:01:00]} 21. Ng4 {[%emt 0:03:30]} Rfe8 {[%emt 0:00:30]} 22. Rf3 {[%emt 0:00:30]} Qe6 {[%emt 0:01:30]} 23. h3 {[%emt 0:03:30]} Re7 {[%emt 0:00:30]} 24. Rcf1 {[%emt 0:01:30]} Rce8 {[%emt 0:01:30]} 25. f5 {[%emt 0:00:30]} Qf7 {[%emt 0:01:30]} 26. Nf2 {[%emt 0:02:30]} Ng5 {[%emt 0:00:30]} 27. Rg3 {[%emt 0:01:30]} Nc4 {[%emt 0:05:30]} 28. Re1 {[%emt 0:01:30]} h5 {[%emt 0:04:30]} (28... Kh8 $17 29. Nc3 Qh5) 29. h4 {[%emt 0:02:30]} Ne4 {[%emt 0:00:30]} 30. Nxe4 {[%emt 0:01:30]} Rxe4 {[%emt 0:00:00]} 31. Nc5 {[%emt 0:01:30]} Rxh4 {[%emt 0:04:00]} 32. Ne6 {[%emt 0:00:30]} g5 {[%emt 0:01:30]} (32... Rg4 $17 33. Rxg4 hxg4) 33. e4 {[%emt 0:02:30]} Nd6 {[%emt 0:07:30]} 34. e5 {[%emt 0:01:30]} (34. Nxg5 $11 fxg5 35. Rxg5+ Kh8 36. Qg3 Rhxe4 37. Rf1) 34... Ne4 {[%emt 0:00:30]} 35. Rf3 $1 {[%emt 0:04:30]} Rg4 {[%emt 0:02:30]} 36. b5 {[%emt 0:01:30]} Qd7 {[%emt 0:10:30]} 37. Rc1 {[%emt 0:01:30]} h4 {[%emt 0:03:30]} (37... Rc8 $5 {[%cal Rc6b5]} 38. Nc5 Qf7 $15) 38. a4 {[%emt 0:01:30]} Rc8 {[%emt 0:02:30]} ({Black should try} 38... Rg3 $11) 39. Qc2 {[%emt 0:02:30]} Qh7 {[%emt 0:02:30]} 40. bxc6 {[%emt 0:02:30]} Rxc6 {[%emt 0:02:30]} 41. Qd1 {[%emt 0:00:30]} (41. Qb2 $14 Rxc1+ 42. Qxc1) 41... h3 {[%emt 0:00:30]} 42. Rxc6 {[%emt 0:01:30]} Rxg2+ {[%emt 0:01:30]} 43. Kh1 {[%emt 0:01:30]} bxc6 {[%emt 0:00:30]} 44. Qb3 $11 {[%emt 0:00:30]} Nf2+ {[%emt 0:09:30]} 45. Rxf2 {[%emt 0:01:30]} Rxf2 {[%emt 0:00:30]} 46. Qb8+ {[%emt 0:00:00]} Kf7 {[%emt 0:00:00]} 47. Qf8# {[%emt 0:01:00]} 1-0

[Event "TUR-ch Veterans 2020"]
[Site "Antalya-Belek"]
[Date "2020.01.20"]
[Round "2"]
[White "Karadag, Eflatun Cem"]
[Black "Yilmaz, Turhan"]
[Result "0-1"]
[ECO "B26"]
[WhiteElo "1801"]
[BlackElo "2132"]
[Annotator "ChessBase"]
[PlyCount "132"]
[EventDate "2020.01.19"]
[EventCountry "TUR"]
[SourceTitle "playchess.com"]
[Source "ChessBase"]
[SourceQuality "1"]
[TimeControl "5400+30"]

1. e4 {[%emt 0:02:30]} c5 {[%emt 0:00:30]} 2. Nc3 {[%emt 0:00:30]} Nc6 {[%emt 0:00:00]} 3. g3 {[%emt 0:00:30]} g6 {[%emt 0:00:00]} 4. Bg2 {[%emt 0:00:30]} Bg7 {[%emt 0:00:30]} 5. d3 {[%emt 0:00:00]} e6 {[%emt 0:00:00]} 6. Be3 {[%emt 0:01:00]} d6 {[%emt 0:00:00]} 7. Qd2 {[%emt 0:00:30]} Qa5 {[%emt 0:02:30]} 8. Nge2 {[%emt 0:08:30]} Nd4 {[%emt 0:00:30]} 9. O-O {[%emt 0:02:30]} Ne7 {[%emt 0:00:30]} 10. a3 {[%emt 0:05:30]} Bd7 {[%emt 0:02:30]} 11. Rfb1 {[%emt 0:09:30]} Qc7 {[%emt 0:01:30]} 12. Rc1 {[%emt 0:04:30]} O-O {[%emt 0:05:30]} 13. Rab1 {[%emt 0:03:30]} Rfc8 {[%emt 0:12:30]} 14. Bh6 {[%emt 0:04:30]} Bh8 {[%emt 0:07:30]} 15. Rf1 {[%emt 0:05:30]} Rab8 {[%emt 0:01:30]} 16. f4 {[%emt 0:01:30]} f5 {[%emt 0:01:30]} 17. Rbe1 {[%emt 0:04:30]} Re8 {[%emt 0:01:30]} 18. Nd1 {[%emt 0:04:30]} b5 {[%emt 0:00:30]} 19. c3 {[%emt 0:04:30]} Nxe2+ {[%emt 0:00:30]} 20. Rxe2 {[%emt 0:01:30]} b4 {[%emt 0:00:30]} 21. Ne3 {[%emt 0:07:30]} bxc3 {[%emt 0:20:30]} 22. bxc3 {[%emt 0:02:30]} Rb3 {[%emt 0:00:30]} 23. Bg5 {[%emt 0:04:30]} fxe4 {[%emt 0:17:30]} 24. dxe4 {[%emt 0:01:30]} Bxc3 {[%emt 0:04:53]} 25. Qc2 {[%emt 0:02:24]} c4 {[%emt 0:03:03]} 26. Ng4 {[%emt 0:07:18]} Bd4+ {[%emt 0:11:18]} 27. Kh1 {[%emt 0:01:03]} Rc3 {[%emt 0:00:01]} 28. Qd1 {[%emt 0:01:57]} Rd3 {[%emt 0:00:16]} 29. Rd2 {[%emt 0:02:40]} Bb5 {[%emt 0:02:04]} 30. Rxd3 {[%emt 0:01:50]} cxd3 {[%emt 0:00:02]} 31. Nf6+ {[%emt 0:00:45]} Bxf6 {[%emt 0:02:07]} 32. Bxf6 {[%emt 0:00:09]} Kf7 {[%emt 0:00:00]} 33. Ba1 {[%emt 0:01:09]} Rf8 {[%emt 0:01:28]} 34. f5 {[%emt 0:02:35]} exf5 {[%emt 0:00:34]} 35. exf5 {[%emt 0:00:15]} Ke8 {[%emt 0:00:06]} 36. f6 {[%emt 0:00:48]} Nf5 {[%emt 0:00:16]} 37. g4 {[%emt 0:00:38]} Nh6 {[%emt 0:00:41]} 38. Re1+ {[%emt 0:00:45]} Kd8 {[%emt 0:00:06]} 39. Re7 {[%emt 0:00:19]} Qc2 {[%emt 0:00:35]} 40. Qxc2 {[%emt 0:02:24]} dxc2 {[%emt 0:00:02]} 41. Re1 {[%emt 0:00:43]} Nxg4 {[%emt 0:00:14]} 42. Bb2 {[%emt 0:00:39]} Nxf6 {[%emt 0:00:17]} 43. Re6 {[%emt 0:00:31]} Ne8 {[%emt 0:00:25]} 44. Kg1 {[%emt 0:00:17]} Kd7 {[%emt 0:00:23]} 45. Bh3 {[%emt 0:00:21]} Kc6 {[%emt 0:00:25]} 46. Re7 {[%emt 0:00:19]} Nc7 {[%emt 0:00:27]} 47. Bd7+ {[%emt 0:00:48]} Kb6 {[%emt 0:01:01]} 48. Bh3 {[%emt 0:00:44]} Rf4 {[%emt 0:00:17]} 49. Bc1 {[%emt 0:00:18]} Rd4 {[%emt 0:00:22]} 50. Be3 {[%emt 0:00:18]} Kc6 {[%emt 0:00:17]} 51. Bg2+ {[%emt 0:01:15]} Nd5 {[%emt 0:00:01]} 52. Kf2 {[%emt 0:00:02]} Rd1 {[%emt 0:00:10]} 53. Rxa7 {[%emt 0:00:28]} c1=Q {[%emt 0:01:28]} 54. Bxc1 {[%emt 0:00:30]} Rxc1 {[%emt 0:00:00]} 55. Rxh7 {[%emt 0:00:00]} Rc2+ {[%emt 0:00:00]} 56. Kg3 {[%emt 0:00:00]} Bd3 {[%emt 0:01:38]} 57. Rh8 {[%emt 0:00:34]} Bf5 {[%emt 0:00:23]} 58. a4 {[%emt 0:00:45]} Rc3+ {[%emt 0:00:07]} 59. Kf2 {[%emt 0:00:17]} Kc5 {[%emt 0:00:15]} 60. a5 {[%emt 0:00:42]} Ra3 {[%emt 0:00:09]} 61. Ra8 {[%emt 0:00:18]} Nc7 {[%emt 0:00:58]} 62. Ra7 {[%emt 0:00:26]} Ra2+ {[%emt 0:00:29]} 63. Kf3 {[%emt 0:00:19]} Nb5 {[%emt 0:00:11]} 64. Ra6 {[%emt 0:01:17]} Bc8 {[%emt 0:01:01]} 65. Ra8 {[%emt 0:00:11]} Bb7+ {[%emt 0:01:03]} 66. Ke3 {[%emt 0:00:30]} Ra1 {[%emt 0:00:41]} 0-1

[Event "TUR-ch Veterans 2020"]
[Site "Antalya-Belek"]
[Date "2020.01.20"]
[Round "2"]
[White "Yildiz, Mustafa"]
[Black "Tasan, Mehmet Askin"]
[Result "0-1"]
[ECO "C55"]
[WhiteElo "1693"]
[BlackElo "1877"]
[Annotator "NA"]
[PlyCount "146"]
[EventDate "2020.01.19"]
[EventCountry "TUR"]
[SourceTitle "playchess.com"]
[Source "ChessBase"]
[SourceQuality "1"]
[TimeControl "5400+30"]

1. e4 {[%emt 0:00:30]} e5 {[%emt 0:00:30]} 2. Nf3 {[%emt 0:01:30]} Nc6 {[%emt 0:00:30]} 3. Bb5 {[%emt 0:06:30]} a6 {[%emt 0:00:30]} 4. Ba4 {[%emt 0:00:30]} Nf6 {[%emt 0:00:30]} 5. O-O {[%emt 0:00:30]} Be7 {[%emt 0:00:30]} 6. d3 {[%emt 0:01:30]} b5 {[%emt 0:00:30]} 7. Bb3 {[%emt 0:00:00]} O-O {[%emt 0:00:00]} 8. h3 {[%emt 0:03:00]} d6 {[%emt 0:01:00]} 9. c3 {[%emt 0:01:30]} Na5 {[%emt 0:00:30]} 10. Bc2 {[%emt 0:00:30]} c5 {[%emt 0:00:30] C55: Two Knights: 4 d3, 4 d4 exd4 5 e5 and Max Lange Attack} 11. Bg5 {[%emt 0:02:30]} (11. Re1 Re8 12. Nbd2 Bf8 13. Nf1 g6 14. Ng3 Nc6 15. Bg5 h6 16. Bd2 {½-½ (16) Pruijssers,R (2557)-Ernst,S (2553) Amstelveen 2019}) 11... Rb8 $146 {[%emt 0:01:30]} ({Predecessor:} 11... h6 12. Be3 Nc6 13. Nbd2 Be6 14. Re1 Re8 15. Nf1 Qd7 16. N3h2 Rad8 17. Qe2 Qc7 18. a3 c4 19. d4 exd4 20. cxd4 d5 21. e5 {½-½ (21) Parak,F (1614)-Kunc,M (1410) Valasska Bystrice 2019}) 12. d4 {[%emt 0:01:30]} Qc7 {[%emt 0:00:30]} 13. Nbd2 {[%emt 0:01:30]} Nc6 {[%emt 0:02:30]} 14. d5 {[%emt 0:01:30]} Nd8 {[%emt 0:02:30]} 15. a3 {[%emt 0:11:30]} a5 {[%emt 0:00:30]} 16. Rc1 {[%emt 0:01:30]} b4 {[%emt 0:00:30]} 17. axb4 {[%emt 0:00:30]} axb4 {[%emt 0:00:00]} 18. cxb4 {[%emt 0:00:30]} Rxb4 {[%emt 0:00:00]} 19. b3 {[%emt 0:00:30]} Ba6 {[%emt 0:00:30]} 20. Re1 {[%emt 0:00:00]} Nb7 {[%emt 0:03:30]} 21. Nf1 {[%emt 0:10:00]} Bxf1 {[%emt 0:06:30]} 22. Kxf1 {[%emt 0:00:30]} Ra8 {[%emt 0:00:30]} 23. Bd2 {[%emt 0:00:30]} Rb6 {[%emt 0:00:30]} 24. Ra1 {[%emt 0:02:30]} Rba6 {[%emt 0:00:30]} 25. Rxa6 {[%emt 0:02:30]} Rxa6 {[%emt 0:00:00]} 26. Bd3 {[%emt 0:02:30]} Ra7 {[%emt 0:02:00]} 27. Qc2 {[%emt 0:02:30]} Bd8 {[%emt 0:02:30]} 28. Bc3 {[%emt 0:09:30]} Qb6 {[%emt 0:01:30]} 29. Ra1 {[%emt 0:03:30]} Nd7 {[%emt 0:00:30]} 30. Rxa7 {[%emt 0:01:30]} Qxa7 {[%emt 0:00:00]} 31. Nd2 {[%emt 0:00:30]} Nb6 {[%emt 0:05:00]} 32. Qb2 {[%emt 0:03:30]} Nd7 {[%emt 0:03:30]} 33. Nc4 {[%emt 0:00:30]} Bc7 {[%emt 0:02:30]} 34. Qa3 {[%emt 0:02:30]} (34. g3 $16) 34... Qxa3 {[%emt 0:06:30]} 35. Nxa3 {[%emt 0:00:30]} Kf8 {[%emt 0:00:30]} (35... Ba5 $14 36. Ba6 Bxc3) 36. Nb5 {[%emt 0:02:30]} ({White should try} 36. Ba6 $16 Ba5 37. Bb2 (37. Bxb7 Bxc3 38. Nb5 {[%mdl 64] Double Attack} Bb4 $16)) 36... Bd8 {[%emt 0:02:30]} 37. Ke2 {[%emt 0:03:30]} Ke7 {[%emt 0:00:30]} 38. Na7 {[%emt 0:00:00]} Bc7 {[%emt 0:06:30]} 39. Nc6+ {[%emt 0:01:00]} Ke8 {[%emt 0:02:30]} 40. Ba6 {[%emt 0:01:30]} Nd8 {[%emt 0:00:30]} 41. Ba5 {[%emt 0:01:31]} ({White should play} 41. Na7 $16) 41... Nxc6 {[%emt 0:03:30]} 42. Bxc7 {[%emt 0:01:17]} Nd4+ {[%emt 0:00:30]} 43. Kd3 {[%emt 0:00:37]} Ke7 {[%emt 0:00:30]} 44. Bc4 {[%emt 0:01:07]} f5 {[%emt 0:01:30]} 45. exf5 {[%emt 0:01:52]} Nxf5 {[%emt 0:00:30]} 46. Ba5 {[%emt 0:00:37]} Nf6 {[%emt 0:00:30]} 47. b4 {[%emt 0:00:02]} cxb4 {[%emt 0:02:30]} 48. Bxb4 {[%emt 0:01:58]} Kd7 {[%emt 0:00:30]} 49. Bb5+ {[%emt 0:00:30]} Ke7 {[%emt 0:01:30]} 50. Bc6 {[%emt 0:00:28]} h5 {[%emt 0:01:30]} 51. g3 {[%emt 0:00:35]} e4+ {[%emt 0:01:30]} 52. Kc4 {[%emt 0:01:04]} e3 {[%emt 0:00:30]} 53. fxe3 {[%emt 0:00:01]} Nxe3+ {[%emt 0:00:30]} 54. Kd3 {[%emt 0:01:45]} Nexd5 {[%emt 0:00:00]} 55. Bd2 {[%emt 0:00:24]} Ke6 {[%emt 0:00:00]} 56. Bb7 {[%emt 0:02:28]} Ne7 {[%emt 0:00:30]} 57. Ke2 {[%emt 0:01:15]} d5 {[%emt 0:01:30]} 58. Kf3 {[%emt 0:03:05]} Ne4 {[%emt 0:00:30]} 59. Be3 {[%emt 0:00:32]} g5 {[%emt 0:04:30]} 60. Bd4 {[%emt 0:01:32]} (60. Bc1 $15) 60... Nxg3 {[%emt 0:00:00]} 61. Bc5 {[%emt 0:00:51]} Ngf5 {[%emt 0:00:00]} 62. h4 {[%emt 0:00:48]} Nxh4+ {[%emt 0:00:30]} 63. Ke3 {[%emt 0:00:13]} Nhf5+ {[%emt 0:00:30]} 64. Kf3 {[%emt 0:00:15]} Nd6 {[%emt 0:00:30]} 65. Ba6 {[%emt 0:00:19]} Ng6 {[%emt 0:00:30]} 66. Ke3 {[%emt 0:01:02]} Nf5+ {[%emt 0:00:30]} 67. Kf2 {[%emt 0:00:31]} Nf4 {[%emt 0:00:30]} 68. Bc8+ {[%emt 0:00:46]} Ke5 {[%emt 0:00:00]} 69. Ba7 {[%emt 0:00:00]} g4 {[%emt 0:01:00]} 70. Bb8+ {[%emt 0:00:10]} Ke4 {[%emt 0:00:00]} 71. Bb7 {[%emt 0:01:11]} g3+ {[%emt 0:00:00]} 72. Kg1 {[%emt 0:00:17]} Ne2+ $19 {[%emt 0:00:30]} (72... Ne3 $142 73. Bxf4 Kxf4 74. Bc6 d4 75. Bb5 h4 76. Bc6 d3 77. Bb5 d2 78. Ba4 h3 79. Bb3 h2+ 80. Kh1 Ng4 81. Kg2 Nf2 82. Kf1 h1=Q+ 83. Ke2 Qe1#) 73. Kg2 {[%emt 0:01:23]} Ne3+ {[%emt 0:00:30]} 0-1